bitfinex/quotes_SOLUSD_20240918
["timestamp","ask_amount","ask_price","bid_price","bid_amount"]
[1726690051403,0.2840589,129.44,129.43,444.59547159]
[1726690051611,0.2840589,129.44,129.43,410.20257]
[1726690053808,0.2840589,129.44,129.43,409.8261]
[1726690055522,0.2840589,129.44,129.43,410.20257]
[1726690055812,0.2840589,129.44,129.43,28.10257]
[1726690059115,0.2840589,129.44,129.43,62.49547159]
[1726690060308,0.2840589,129.44,129.43,28.10257]
[1726690060697,0.2840589,129.44,129.43,27.7261]
[1726690061815,0.2840589,129.44,129.43,28.20276362]
[1726690062300,0.2840589,129.44,129.43,28.57923362]
[1726690063204,0.2840589,129.44,129.43,62.97213521]
[1726690064599,0.2840589,129.44,129.43,28.10257]
[1726690064901,0.2840589,129.44,129.43,7.7261]
[1726690065993,0.2840589,129.44,129.43,7.85159]
[1726690066395,0.2840589,129.44,129.43,27.97708]
[1726690066706,0.2840589,129.44,129.43,28.10257]
[1726690067237,0.2840589,129.44,129.42,27.0424]
[1726690067238,0.2471612,129.43,129.42,27.0424]
[1726690067521,0.2471612,129.43,129.42,27.0425]
[1726690068603,0.2471612,129.43,129.42,27.16799]
[1726690068805,0.2471612,129.43,129.42,27.0425]
[1726690069320,0.2471612,129.43,129.42,19.3158]
[1726690069904,0.2471612,129.43,129.42,27.0425]
[1726690070213,0.2471612,129.43,129.42,19.3158]
[1726690070584,0.2471612,129.43,129.42,27.0425]
[1726690071517,0.2471612,129.43,129.42,19.3158]
[1726690071921,0.2471612,129.43,129.42,27.0425]
[1726690072094,0.2471612,129.43,129.42,27.16799]
[1726690072909,0.2471612,129.43,129.42,19.3158]
[1726690073116,0.2471612,129.43,129.42,27.0425]
[1726690074922,0.2471612,129.43,129.42,27.16799]
[1726690075114,0.2471612,129.43,129.42,27.41897]
[1726690075493,0.2471612,129.43,129.42,19.3158]
[1726690075698,0.2471612,129.43,129.42,27.0425]
[1726690076109,0.2471612,129.43,129.4,7.7275]
[1726690076405,0.2471612,129.41,129.4,27.7275]
[1726690077211,0.2471612,129.41,129.39,27.0484]
[1726690077524,0.2471612,129.41,129.39,27.0482]
[1726690078612,0.2471612,129.39,129.38,7.729]
[1726690078810,0.2471612,129.39,129.37,7.7296]
[1726690079015,0.2471612,129.37,129.36,19.3249]
[1726690079216,0.2471612,129.37,129.36,27.0552]
[1726690081323,0.2471612,129.37,129.36,27.43167]
[1726690081908,0.2471612,129.34,129.33,19.3294]
[1726690082121,0.2471612,129.34,129.33,27.0615]
[1726690083227,0.2471612,129.34,129.33,47.0615]
[1726690083397,0.2471612,129.34,129.33,47.43797]
[1726690084902,0.2471612,129.34,129.33,47.0615]
[1726690086502,0.2471612,129.34,129.33,47.18699]
[1726690086823,0.2471612,129.34,129.33,27.0615]
[1726690090725,0.2471612,129.37,129.36,86.08447]
[1726690090906,0.2471612,129.39,129.38,28.10557]
[1726690091308,0.1159504,129.4,129.39,28.10497]
[1726690091701,0.1159504,129.4,129.39,444.59787159]
[1726690092708,0.5007442,129.44,129.39,443.59787159]
[1726690092908,0.5007442,129.44,129.43,86.04887]
[1726690093259,0.253583,129.44,129.43,120.44177159]
[1726690093542,0.253583,129.44,129.43,502.54177159]
[1726690094240,0.253583,129.48,129.47,86.02847]
[1726690094415,0.253583,129.48,129.47,468.12847]
[1726690095228,0.5007442,129.48,129.47,468.12847]
[1726690095610,0.253583,129.48,129.47,468.12847]
[1726690096331,0.253583,129.48,129.47,502.52137159]
[1726690099625,0.253583,129.48,129.47,467.752]
[1726690100606,0.5007442,129.52,129.47,502.14490159]
[1726690100808,0.5007442,129.52,129.51,120.40127159]
[1726690100809,0.253583,129.52,129.51,120.40127159]
[1726690101009,0.253583,129.52,129.51,120.94930349]
[1726690101215,0.5007442,129.56,129.55,19.2975]
[1726690101412,0.5007442,129.56,129.55,40.22187569]
[1726690101645,0.5007442,129.56,129.55,47.94087569]
[1726690101811,0.253583,129.56,129.55,47.39297]
[1726690102015,0.5007442,129.56,129.55,47.39297]
[1726690102445,6.758683,129.63,129.57,27.96878]
[1726690102446,0.2471612,129.58,129.57,27.96878]
[1726690102741,0.2943919,129.58,129.57,27.96878]
[1726690103436,0.2943919,129.58,129.57,28.09427]
[1726690104725,0.2471612,129.56,129.55,401.3975]
[1726690104926,0.2471612,129.56,129.55,409.1165]
[1726690106037,0.2471612,129.56,129.55,409.49297]
[1726690106240,0.2471612,129.56,129.55,429.49297]
[1726690106542,0.2471612,129.56,129.55,429.36748]
[1726690107039,0.2471612,129.56,129.55,429.49297]
[1726690107920,0.2943919,129.58,129.57,7.7178]
[1726690108119,0.2943919,129.58,129.57,7.84329]
[1726690108443,0.2943919,129.58,129.56,27.96898]
[1726690108630,0.2943919,129.58,129.57,7.7178]
[1726690110738,0.2943919,129.58,129.57,28.09427]
[1726690111126,0.0472307,129.58,129.57,28.09427]
[1726690114440,0.2943919,129.58,129.57,7.7178]
[1726690115048,0.2943919,129.58,129.57,28.55428177]
[1726690115229,0.2943919,129.58,129.57,27.0123]
[1726690115746,0.2943919,129.58,129.57,47.38877]
[1726690116123,0.0472307,129.58,129.57,429.48877]
[1726690117329,0.2943919,129.58,129.57,429.48877]
[1726690117529,0.2471612,129.58,129.57,429.48877]
[1726690121047,0.3709508,129.59,129.58,28.09367]
[1726690123453,0.3709508,129.59,129.58,27.7172]
[1726690124764,0.2471612,129.58,129.57,409.1122]
[1726690124935,0.2471612,129.55,129.54,27.0172]
[1726690126527,0.2471612,129.55,129.51,38.607]
[1726690126528,0.2471612,129.55,129.51,57.9095]
[1726690126757,0.2471612,129.53,129.52,7.7206]
[1726690127763,0.2471612,129.53,129.52,27.7206]
[1726690128459,0.2471612,129.53,129.52,28.09707]
[1726690134938,0.0472307,129.54,129.53,66.69767]
[1726690138140,0.0472307,129.54,129.53,66.44669]
[1726690138335,0.0472307,129.54,129.53,448.4212]
[1726690139742,0.0472307,129.54,129.53,448.79767]
[1726690140560,0.0472307,129.54,129.53,468.09817]
[1726690141842,0.0472307,129.54,129.53,429.1207]
[1726690142573,0.0472307,129.54,129.53,382.1]
[1726690143250,0.2471612,129.52,129.51,7.7211]
[1726690143451,0.2471612,129.52,129.5,19.3037]
[1726690143963,0.2471612,129.48,129.47,410.89743931]
[1726690144353,0.2471612,129.48,129.47,409.132]
[1726690145366,0.2471612,129.48,129.47,429.38298]
[1726690146351,0.2471612,129.48,129.47,429.50847]
[1726690146668,0.2471612,129.48,129.47,409.50847]
[1726690147173,0.2471612,129.48,129.47,27.40847]
[1726690147743,0.2471612,129.48,129.47,47.40847]
[1726690153062,0.2471612,129.48,129.47,429.50847]
[1726690155854,0.2471612,129.5,129.49,39.68297]
[1726690156349,0.2471612,129.5,129.49,47.40557]
[1726690157052,0.2471612,129.5,129.49,48.94944437]
[1726690157253,0.2471612,129.52,129.51,27.0249]
[1726690157478,0.2943919,129.54,129.53,28.09667]
[1726690158256,0.2943919,129.54,129.53,47.39717]
[1726690158671,0.2943919,129.54,129.53,27.39717]
[1726690158874,0.2943919,129.54,129.53,47.39717]
[1726690160386,0.2943919,129.54,129.53,27.14619]
[1726690160954,0.2943919,129.54,129.53,47.39717]
[1726690161483,0.2943919,129.54,129.53,429.49717]
[1726690161484,0.0472307,129.54,129.53,429.49717]
[1726690163359,0.2943919,129.54,129.53,429.49717]
[1726690163991,0.2471612,129.54,129.53,429.49717]
[1726690164162,0.3643044,129.54,129.53,429.49717]
[1726690165185,0.3643044,129.54,129.53,409.1207]
[1726690166785,0.3643044,129.54,129.53,409.24619]
[1726690167392,0.3643044,129.54,129.53,409.49717]
[1726690168185,0.3643044,129.54,129.53,47.39717]
[1726690168609,0.1171432,129.54,129.53,47.39717]
[1726690169388,0.3643044,129.54,129.53,47.39717]
[1726690170287,0.3643044,129.54,129.52,7.7205]
[1726690171159,0.3643044,129.54,129.52,27.0224]
[1726690172871,0.3643044,129.54,129.53,7.7202]
[1726690173078,0.3643044,129.54,129.52,27.0224]
[1726690174571,0.2471612,129.52,129.51,7.97218]
[1726690174892,0.2471612,129.52,129.49,19.305]
[1726690174893,0.2471612,129.52,129.5,7.7218]
[1726690175672,0.2471612,129.5,129.49,27.15289]
[1726690175867,0.2471612,129.5,129.49,47.40387]
[1726690176988,0.2471612,129.52,129.51,27.0249]
[1726690177313,0.2471612,129.52,129.51,47.40137]
[1726690180002,0.2471612,129.52,129.51,429.50137]
[1726690181984,0.1171432,129.53,129.51,421.77997]
[1726690182194,0.1171432,129.53,129.52,66.70127]
[1726690182414,0.1171432,129.53,129.52,101.09417159]
[1726690183700,0.1171432,129.53,129.52,66.70127]
[1726690183900,0.3643044,129.53,129.52,28.09727]
[1726690185907,0.3643044,129.53,129.52,410.19727]
[1726690186400,0.1171432,129.53,129.52,410.19727]
[1726690186703,0.3643044,129.53,129.52,410.19727]
[1726690187203,0.3643044,129.53,129.52,410.07178]
[1726690188488,0.3643044,129.53,129.52,410.19727]
[1726690192005,0.3643044,129.53,129.52,28.09727]
[1726690195010,0.3643044,129.53,129.52,27.84629]
[1726690195618,0.3643044,129.53,129.52,28.33806991]
[1726690196289,0.3643044,129.53,129.52,28.58904991]
[1726690196716,0.3643044,129.53,129.52,28.09727]
[1726690197923,0.3643044,129.53,129.52,410.19727]
[1726690198216,0.3643044,129.53,129.52,402.47647]
[1726690198413,0.3643044,129.53,129.52,410.19727]
[1726690199685,0.3643044,129.53,129.52,382.1]
[1726690199916,0.2471612,129.49,129.48,19.3067]
[1726690200092,0.2471612,129.49,129.48,27.0299]
[1726690200402,0.2471612,129.49,129.48,19.3067]
[1726690200904,0.2471612,129.49,129.47,7.7236]
[1726690201712,0.2471612,129.46,129.44,0.1330464]
[1726690202215,0.2471612,129.46,129.45,7.7249]
[1726690203095,0.2471612,129.46,129.45,7.97588]
[1726690203310,0.2471612,129.46,129.45,7.7249]
[1726690203502,0.2471612,129.46,129.45,7.97588]
[1726690203695,0.2471612,129.46,129.45,8.10137]
[1726690203899,0.2471612,129.46,129.45,28.10137]
[1726690206119,0.2471612,129.46,129.45,8.10137]
[1726690210129,0.2471612,129.46,129.45,28.10137]
[1726690210711,0.2471612,129.48,129.47,27.0331]
[1726690210919,0.2471612,129.48,129.47,47.91569614]
[1726690211222,0.2471612,129.48,129.47,429.50957]
[1726690211599,0.2471612,129.5,129.49,7.7226]
[1726690211914,0.2471612,129.5,129.49,28.09907]
[1726690212727,0.2471612,129.5,129.49,27.97358]
[1726690212929,0.2471612,129.5,129.49,28.09907]
[1726690213712,0.2471612,129.5,129.47,401.4094]
[1726690213926,0.2471612,129.48,129.47,429.1331]
[1726690214696,0.2471612,129.5,129.49,7.7226]
[1726690215123,0.2471612,129.5,129.49,8.09907]
[1726690215916,0.2471612,129.48,129.47,401.66038]
[1726690216229,0.2471612,129.48,129.47,429.50957]
[1726690216629,0.2471612,129.5,129.49,7.7226]
[1726690216832,0.2471612,129.5,129.49,8.09907]
[1726690217126,0.2471612,129.5,129.49,28.09907]
[1726690217711,0.2471612,129.52,129.51,47.0249]
[1726690217906,0.2471612,129.52,129.51,47.40137]
[1726690219111,0.2471612,129.52,129.51,429.50137]
[1726690222230,0.2471612,129.52,129.51,429.25039]
[1726690222806,0.2471612,129.52,129.51,409.25039]
[1726690223031,0.2471612,129.52,129.51,382.22549]
[1726690223414,0.2471612,129.52,129.51,382.1]
[1726690223812,7.9679612,129.52,129.51,382.1]
[1726690224329,7.9679612,129.52,129.48,19.3065]
[1726690224633,0.2471612,129.49,129.47,7.7234]
[1726690224849,0.2471612,129.49,129.48,7.7232]
[1726690225550,0.2471612,129.49,129.48,389.8232]
[1726690225827,0.1171432,129.53,129.48,389.8232]
[1726690225828,0.2471612,129.51,129.5,47.40347]
[1726690230210,0.2471612,129.51,129.5,429.50347]
[1726690233610,0.1171432,129.53,129.52,27.0228]
[1726690233832,0.1171432,129.53,129.52,451.02017105]
[1726690234017,0.1171432,129.53,129.52,451.56794125]
[1726690234452,0.1171432,129.53,129.52,451.02017105]
[1726690235230,0.3643044,129.53,129.52,409.1228]
[1726690236830,0.3643044,129.53,129.52,429.49927]
[1726690237427,0.1171432,129.53,129.52,429.49927]
[1726690239019,0.1171432,129.53,129.52,445.96127]
[1726690241531,0.1171432,129.53,129.52,445.71029]
[1726690241835,0.3643044,129.53,129.52,429.24829]
[1726690242141,0.3643044,129.53,129.52,429.1228]
[1726690242349,0.3643044,129.53,129.52,409.1228]
[1726690242843,0.3643044,129.53,129.52,27.0228]
[1726690243052,0.3643044,129.53,129.51,7.7213]
[1726690243225,0.3643044,129.53,129.49,19.3054]
[1726690243226,0.2471612,129.51,129.5,7.7218]
[1726690243426,0.2471612,129.51,129.49,19.3054]
[1726690243631,0.1171432,129.53,129.46,19.3101]
[1726690243632,0.2471612,129.47,129.46,19.3101]
[1726690243833,0.2471612,129.47,129.46,27.0339]
[1726690245233,0.2471612,129.47,129.46,47.0339]
[1726690245833,0.2471612,129.47,129.46,47.28488]
[1726690246734,0.2471612,129.47,129.46,47.41037]
[1726690246940,0.2471612,129.47,129.46,27.0339]
[1726690248459,0.2471612,129.47,129.46,47.41037]
[1726690249734,0.2471612,129.47,129.46,20.0]
[1726690249940,0.2471612,129.45,129.44,20.3840264]
[1726690250148,0.2471612,129.45,129.44,47.4234264]
[1726690250964,0.2471612,129.45,129.44,0.1330464]
[1726690251165,7.9720612,129.45,129.44,0.1330464]
[1726690252264,0.2471612,129.45,129.44,0.1330464]
[1726690253067,0.2471612,129.45,129.44,7.8585464]
[1726690253562,0.2471612,129.45,129.44,0.1330464]
[1726690256569,0.2471612,129.45,129.44,7.8585464]
[1726690258068,0.2471612,129.45,129.44,0.1330464]
[1726690258762,7.9720612,129.45,129.44,0.1330464]
[1726690259446,7.9720612,129.45,129.4,19.5686896]
[1726690259447,7.7273,129.42,129.4,0.2501896]
[1726690259972,7.7273,129.41,129.4,0.2501896]
[1726690260971,7.727,129.42,129.4,0.2501896]
[1726690261763,7.7262,129.43,129.4,0.2501896]
[1726690262069,16.6168,129.44,129.4,0.2501896]
[1726690262275,7.7273,129.41,129.4,0.2501896]
[1726690263665,7.7273,129.41,129.36,0.2501896]
[1726690263666,7.7297,129.37,129.36,0.2501896]
[1726690263867,0.12549,129.4,129.36,0.2501896]
[1726690263868,7.7293,129.38,129.36,0.2501896]
[1726690266152,7.7297,129.37,129.36,0.2501896]
[1726690268165,7.85519,129.37,129.36,0.2501896]
[1726690268360,24.63178,129.37,129.36,0.2501896]
[1726690269258,24.75727,129.37,129.36,0.2501896]
[1726690270374,24.50629,129.37,129.36,0.2501896]
[1726690270577,24.3808,129.37,129.36,0.2501896]
[1726690273283,24.75727,129.37,129.36,0.2501896]
[1726690273577,24.75727,129.37,129.32,0.2501896]
[1726690273578,7.7321,129.33,129.32,0.2501896]
[1726690274474,7.7317,129.34,129.32,0.2501896]
[1726690275272,19.3259,129.36,129.32,0.2501896]
[1726690275484,7.7319,129.34,129.32,0.2501896]
[1726690276255,7.7321,129.33,129.32,0.2501896]
[1726690276579,7.7317,129.34,129.32,0.2501896]
[1726690277179,7.731,129.35,129.32,0.2501896]
[1726690277373,7.731,129.35,129.32,7.9828896]
[1726690277872,7.7304,129.36,129.32,7.9828896]
[1726690278078,7.7288,129.39,129.35,7.7309]
[1726690278380,16.4705,129.4,129.35,7.7309]
[1726690278591,16.4705,129.4,129.37,7.7292]
[1726690278881,14.3772,129.41,129.37,7.7295]
[1726690279176,6.6498,129.41,129.36,19.3254]
[1726690279365,7.7284,129.4,129.36,19.3254]
[1726690279571,7.7292,129.38,129.35,20.0]
[1726690279776,7.7288,129.39,129.35,27.7309]
[1726690280081,7.7288,129.39,129.35,47.0581]
[1726690280283,7.7281,129.4,129.36,7.7302]
[1726690280578,7.7281,129.4,129.35,39.3272]
[1726690280579,6.6498,129.41,129.37,7.7294]
[1726690280774,14.3776,129.41,129.37,7.7294]
[1726690281167,6.6498,129.41,129.36,7.7302]
[1726690281372,7.7286,129.39,129.35,47.0577]
[1726690281561,7.7281,129.4,129.36,7.7299]
[1726690283682,14.3773,129.41,129.37,7.7297]
[1726690284371,16.4705,129.43,129.38,1.54571632]
[1726690284563,7.7253,129.45,129.41,7.7272]
[1726690285158,7.7253,129.45,129.42,7.7267]
[1726690285480,0.2501896,129.46,129.4,0.12549]
[1726690285696,0.2501896,129.46,129.43,7.7261]
[1726690286157,7.725,129.45,129.42,19.3169]
[1726690286578,7.7255,129.44,129.4,7.7277]
[1726690287586,7.726,129.44,129.4,7.7277]
[1726690287765,19.5617896,129.46,129.39,39.32]
[1726690288083,7.7268,129.42,129.39,39.32]
[1726690288387,7.7274,129.41,129.37,7.7295]
[1726690288553,7.7269,129.42,129.38,7.7291]
[1726690289367,7.7275,129.41,129.37,7.7296]
[1726690290274,15.0853,129.44,129.41,7.7271]
[1726690290459,0.2501896,129.46,129.36,20.0]
[1726690290889,0.2501896,129.46,129.37,0.12549]
[1726690291266,0.2501896,129.46,129.36,20.0]
[1726690291490,7.728,129.4,129.37,19.323]
[1726690291691,7.7299,129.37,129.33,7.732]
[1726690291988,7.7292,129.38,129.34,7.7312]
[1726690292289,7.7298,129.37,129.33,27.061]
[1726690292864,7.7316,129.34,129.32,0.2501896]
[1726690293283,42.5533,129.38,129.32,0.2501896]
[1726690293284,7.7321,129.33,129.32,0.2501896]
[1726690293566,7.7316,129.34,129.32,0.2501896]
[1726690294171,7.7317,129.34,129.32,0.2501896]
[1726690294900,7.7311,129.35,129.32,0.2501896]
[1726690295390,7.7316,129.34,129.32,0.2501896]
[1726690295985,0.25098,129.37,129.32,0.2501896]
[1726690296165,7.7311,129.35,129.32,0.2501896]
[1726690296889,7.7304,129.36,129.32,7.9826896]
[1726690297074,7.7299,129.37,129.32,7.9826896]
[1726690297279,39.3223,129.39,129.32,7.9828896]
[1726690297581,7.7299,129.37,129.33,7.7319]
[1726690298070,7.7308,129.36,129.32,7.9827896]
[1726690298274,0.12549,129.38,129.32,0.2501896]
[1726690298889,0.12549,129.37,129.32,0.2501896]
[1726690299276,7.7311,129.35,129.32,0.2501896]
[1726690299921,7.7313,129.35,129.32,0.2501896]
[1726690300198,7.85759,129.33,129.32,0.2501896]
[1726690300378,7.85759,129.33,129.28,0.2501896]
[1726690300379,7.7343,129.3,129.28,0.2501896]
[1726690300891,7.7345,129.29,129.28,0.2501896]
[1726690301676,8.11097,129.29,129.28,0.2501896]
[1726690301871,7.98728,129.26,129.25,0.2501896]
[1726690302076,8.11277,129.26,129.25,0.2501896]
[1726690302997,6.0157,129.28,129.25,0.2501896]
[1726690302998,7.7359,129.27,129.25,0.2501896]
[1726690303199,13.87679,129.28,129.25,0.2501896]
[1726690303578,7.7363,129.26,129.25,0.2501896]
[1726690303787,7.7358,129.27,129.25,0.2501896]
[1726690303983,7.7357,129.27,129.25,0.2501896]
[1726690304291,6.14119,129.28,129.25,0.2501896]
[1726690304603,13.87659,129.28,129.25,0.2501896]
[1726690305295,7.7361,129.27,129.25,0.2501896]
[1726690305979,13.87639,129.28,129.25,0.2501896]
[1726690306183,0.12549,129.28,129.22,19.3456]
[1726690306505,0.12549,129.28,129.25,7.7365]
[1726690306689,0.12549,129.28,129.26,7.7361]
[1726690306884,7.734,129.3,129.26,7.7361]
[1726690307093,7.734,129.3,129.25,7.7363]
[1726690307308,7.734,129.3,129.22,20.0]
[1726690307309,0.12549,129.3,129.22,20.0]
[1726690307604,7.7352,129.28,129.24,7.7374]
[1726690308388,7.7358,129.27,129.22,7.7382]
[1726690308710,7.7358,129.27,129.23,7.7381]
[1726690309286,7.7364,129.26,129.21,0.2501896]
[1726690309501,7.7371,129.25,129.21,7.9890896]
[1726690309702,7.7375,129.24,129.21,0.2501896]
[1726690310097,7.7375,129.24,129.2,26.8389896]
[1726690311007,0.25098,129.27,129.21,7.7392]
[1726690311306,0.12549,129.28,129.22,19.346]
[1726690311514,0.25098,129.28,129.22,19.346]
[1726690312011,0.37647,129.23,129.19,0.0963448]
[1726690312675,8.11637,129.2,129.19,0.0963448]
[1726690312890,7.86539,129.2,129.19,0.0963448]
[1726690313314,7.7399,129.2,129.19,0.0963448]
[1726690313483,7.7399,129.2,129.14,0.3308316]
[1726690313484,0.12549,129.19,129.14,0.3308316]
[1726690313679,20.0,129.2,129.16,7.7418]
[1726690313907,19.3458,129.23,129.14,19.6881316]
[1726690314094,7.7398,129.21,129.16,7.7421]
[1726690314408,19.3458,129.23,129.14,19.6881316]
[1726690314409,7.7401,129.2,129.15,7.7428]
[1726690314932,0.37647,129.22,129.14,19.6881316]
[1726690315208,7.74,129.2,129.16,7.7418]
[1726690315392,7.74,129.2,129.15,7.7427]
[1726690316102,7.7408,129.19,129.15,7.7427]
[1726690316312,7.74,129.2,129.15,7.7427]
[1726690317385,7.7404,129.2,129.15,7.7428]
[1726690318192,7.7406,129.19,129.15,7.7428]
[1726690319103,20.0,129.21,129.14,19.6881316]
[1726690319304,20.0,129.21,129.14,27.4312316]
[1726690319486,7.7412,129.18,129.14,27.4312316]
[1726690320303,7.7418,129.17,129.14,0.3308316]
[1726690320695,19.72667,129.2,129.14,0.3308316]
[1726690321006,7.7429,129.15,129.14,0.3308316]
[1726690321189,7.7423,129.16,129.14,0.3308316]
[1726690321588,7.7422,129.17,129.14,0.3308316]
[1726690321792,3.48366129,129.2,129.14,0.3308316]
[1726690322001,7.7418,129.17,129.14,0.3308316]
[1726690322210,7.7425,129.16,129.14,0.3308316]
[1726690322713,7.7429,129.15,129.14,0.3308316]
[1726690323095,27.7429,129.15,129.14,0.3308316]
[1726690323304,20.0,129.14,129.09,0.3308316]
[1726690323812,7.7453,129.11,129.09,0.3308316]
[1726690324009,20.0,129.14,129.09,0.3308316]
[1726690324310,20.37647,129.14,129.09,0.3308316]
[1726690325030,20.37647,129.14,129.04,0.3308316]
[1726690325031,20.0,129.1,129.04,0.3308316]
[1726690325225,7.7489,129.05,129.04,0.3308316]
[1726690325520,7.7489,129.05,128.99,0.3308316]
[1726690325521,20.0,129.04,128.99,0.3308316]
[1726690325686,7.7519,129.0,128.99,0.3308316]
[1726690326098,7.7519,129.0,128.95,14.2197]
[1726690326099,20.0,129.04,128.95,6.4653]
[1726690326100,7.7526,128.99,128.95,6.4653]
[1726690326322,20.0,129.02,128.95,0.2287242]
[1726690326611,7.7543,128.96,128.95,0.2287242]
[1726690326930,20.12549,128.96,128.87,6.9977023]
[1726690327135,0.12549,128.95,128.87,6.9977023]
[1726690327339,20.25098,128.93,128.87,0.5019023]
[1726690327511,20.0,128.88,128.87,0.5019023]
[1726690327832,20.0,128.88,128.8,0.2]
[1726690328136,20.0,128.9,128.81,19.4074]
[1726690328341,20.0,128.9,128.82,7.7623]
[1726690328524,8.00958,128.89,128.81,19.4074]
[1726690328721,0.37647,128.91,128.79,0.2019023]
[1726690328925,7.761,128.85,128.79,0.2019023]
[1726690329120,20.12549,128.81,128.79,0.2019023]
[1726690329408,20.12549,128.81,128.71,0.5019023]
[1726690329409,0.12549,128.8,128.71,0.5019023]
[1726690329608,7.7654,128.78,128.71,0.5019023]
[1726690329827,27.7637,128.81,128.74,7.7674]
[1726690330034,27.7637,128.81,128.71,0.5019023]
[1726690330035,0.37647,128.87,128.71,0.5019023]
[1726690330246,0.37647,128.87,128.72,56.55556423]
[1726690330410,0.37647,128.87,128.71,0.5019023]
[1726690330411,0.37647,128.82,128.71,0.5019023]
[1726690330610,7.88849,128.82,128.75,87.7668]
[1726690331029,7.7634,128.81,128.75,80.0]
[1726690331218,20.0,128.87,128.75,80.0]
[1726690331529,0.12549,128.85,128.77,7.7656]
[1726690331732,0.12549,128.85,128.76,19.4158]
[1726690332117,0.25098,128.84,128.75,80.0]
[1726690332320,0.12549,128.82,128.75,99.4162]
[1726690332519,0.12549,128.82,128.75,107.1826]
[1726690332834,0.25098,128.83,128.77,7.7656]
[1726690333133,0.25098,128.83,128.75,80.0]
[1726690333446,12.6569463,128.88,128.77,19.4134]
[1726690333744,15.4156,128.92,128.76,76.55556423]
[1726690333912,8.05488133,128.93,128.87,7.7596]
[1726690334110,6.3269,128.95,128.85,19.4023]
[1726690334411,8.05394145,128.92,128.85,27.1632]
[1726690334611,6.3269,128.95,128.85,19.4023]
[1726690334837,8.05492032,128.94,128.85,27.1627]
[1726690335010,8.05492032,128.94,128.86,7.7602]
[1726690335412,8.05492032,128.94,128.85,19.4023]
[1726690335637,6.3269,128.95,128.85,19.4023]
[1726690335808,8.05567386,128.94,128.85,19.4023]
[1726690336212,13.0897673,128.97,128.88,19.3972]
[1726690336438,8.05440785,128.96,128.84,20.37647]
[1726690336636,0.5019023,128.98,128.93,7.756]
[1726690336845,0.5019023,128.98,128.94,7.7554]
[1726690337136,0.5019023,128.98,128.95,7.7548]
[1726690337340,0.5019023,128.98,128.96,7.7541]
[1726690338029,0.5019023,128.98,128.94,19.3879]
[1726690338335,0.5019023,128.98,128.95,7.7548]
[1726690338714,0.5019023,128.98,128.96,7.754]
[1726690339321,0.5019023,128.98,128.94,19.3879]
[1726690339516,0.5019023,128.98,128.94,27.1432]
[1726690339720,0.5019023,128.98,128.96,7.7538]
[1726690339945,0.5019023,128.98,128.9,19.3945]
[1726690340244,0.5019023,128.98,128.88,6.6018]
[1726690340245,0.5019023,128.98,128.94,7.7553]
[1726690340415,0.5019023,128.98,128.93,19.3898]
[1726690340621,0.5019023,128.98,128.94,7.7554]
[1726690340820,0.5019023,128.98,128.93,19.3898]
[1726690341027,0.5019023,128.98,128.96,19.3856]
[1726690341233,0.5019023,128.98,128.95,7.7543]
[1726690341544,0.5019023,128.98,128.92,19.3905]
[1726690341720,0.5019023,128.98,128.95,7.7549]
[1726690342123,0.5019023,128.98,128.89,20.25098]
[1726690342349,0.5019023,128.98,128.91,38.7864]
[1726690342520,0.5019023,128.98,128.97,7.7537]
[1726690343333,0.5019023,128.98,128.96,27.1387]
[1726690343647,0.5019023,128.98,128.93,27.1458]
[1726690343820,0.5019023,128.98,128.93,19.3903]
[1726690344022,0.5019023,128.98,128.95,7.7548]
[1726690344544,0.5019023,128.98,128.94,7.7555]
[1726690344844,0.5019023,128.98,128.93,27.1464]
[1726690345043,0.5019023,128.98,128.93,19.3903]
[1726690345341,0.5019023,128.98,128.89,20.0]
[1726690345342,7.7543,128.96,128.9,7.7578]
[1726690345541,0.5019023,128.98,128.89,19.3962]
[1726690345542,7.7555,128.94,128.89,19.3962]
[1726690345919,7.7555,128.94,128.89,27.1547]
[1726690346125,7.7548,128.96,128.91,7.7573]
[1726690346325,7.755,128.95,128.89,19.3962]
[1726690346520,7.755,128.95,128.89,27.1547]
[1726690346726,20.0,128.96,128.9,7.7574]